fUST/lending_fUST_20240916
["ID","MTS","AMOUNT","RATE_DAILY","PERIOD"]
[338276989,1726479153474,-1130.26,0.00019178,2]
[338276990,1726479153497,-205.023399,0.00019178,2]
[338276991,1726479153520,-1130.45070908,0.00019178,2]
[338276992,1726479153543,-205.023399,0.00019178,2]
[338276993,1726479153568,-205.023399,0.00019178,2]
[338276994,1726479153591,-500.0,0.00019178,2]
[338276995,1726479153614,-500.0,0.00019178,2]
[338276996,1726479153637,-1696.82,0.00019178,2]
[338276997,1726479153664,-205.023399,0.00019178,2]
[338276998,1726479153690,-1403.83,0.00019178,2]
[338276999,1726479153714,-205.023399,0.00019178,2]
[338277000,1726479153737,-205.023399,0.00019178,2]
[338277001,1726479153760,-2658.79,0.00019178,2]
[338277002,1726479153784,-205.023399,0.00019178,2]
[338277003,1726479153808,-205.023399,0.00019178,2]
[338277004,1726479153831,-205.023399,0.00019178,2]
[338277005,1726479153855,-500.0,0.00019178,2]
[338277006,1726479153878,-205.023399,0.00019178,2]
[338277007,1726479153901,-205.023399,0.00019178,2]
[338277008,1726479153927,-1528.88,0.00019178,2]
[338277009,1726479153951,-151.0,0.00019178,2]
[338277010,1726479153975,-928.07,0.00019178,2]
[338277011,1726479154000,-151.0,0.00019178,2]
[338277012,1726479154025,-151.0,0.00019178,2]
[338277013,1726479154051,-151.0,0.00019178,2]
[338277014,1726479154075,-151.0,0.00019178,2]
[338277015,1726479154099,-151.0,0.00019178,2]
[338277016,1726479154123,-500.0,0.00019178,2]
[338277017,1726479154148,-151.0,0.00019178,2]
[338277018,1726479154174,-151.0,0.00019178,2]
[338277019,1726479154197,-554.76012241,0.00019178,2]
[338277020,1726479154221,-214.848819,0.00019178,2]
[338277021,1726479154244,-500.0,0.00019178,2]
[338277022,1726479154268,-1378.73,0.00019178,2]
[338277023,1726479154292,-3847.43,0.00019178,2]
[338277024,1726479154315,-3342.6,0.00019178,2]
[338277025,1726479154339,-500.0,0.00019178,2]
[338277026,1726479154361,-501.44015873,0.00019178,2]
[338277027,1726479154383,-500.0,0.00019178,2]
[338277028,1726479154406,-500.0,0.00019178,2]
[338277029,1726479154439,-1918.37,0.00019178,2]
[338277030,1726479154463,-1907.57,0.00019178,2]
[338277031,1726479154488,-500.0,0.00019178,2]
[338277032,1726479154512,-435.97869868,0.00019178,2]
[338277033,1726479154536,-674.12,0.00019178,2]
[338277034,1726479154559,-3205.67,0.00019178,2]
[338277035,1726479154581,-2670.3,0.00019178,2]
[338277036,1726479154603,-227.90107623,0.00019178,2]
[338277037,1726479154627,-1126.67,0.00019178,2]
[338277038,1726479154650,-500.0,0.00019178,2]
[338277039,1726479154673,-500.0,0.00019178,2]
[338277040,1726479154696,-500.0,0.00019178,2]
[338277041,1726479154719,-1306.17,0.00019178,2]
[338277042,1726479154741,-4310.15,0.00019178,2]
[338277043,1726479154764,-2510.09,0.00019178,2]
[338277044,1726479154786,-1892.28,0.00019178,2]
[338277045,1726479154809,-750.36,0.00019178,2]
[338277046,1726479154832,-1132.95,0.00019178,2]
[338277047,1726479154856,-647.06,0.00019178,2]
[338277048,1726479154878,-500.0,0.00019178,2]
[338277049,1726479154900,-500.0,0.00019178,2]
[338277050,1726479154925,-805.41,0.00019178,2]
[338277051,1726479154947,-885.38,0.00019178,2]
[338277052,1726479154969,-4141.31,0.00019178,2]
[338277053,1726479154992,-500.0,0.00019178,2]
[338277054,1726479155015,-2936.65,0.00019178,2]
[338277055,1726479155038,-500.0,0.00019178,2]
[338277056,1726479155063,-998.76,0.00019178,2]
[338277057,1726479155084,-2179.2,0.00019178,2]
[338277058,1726479155108,-1035.71,0.00019178,2]
[338277059,1726479155129,-904.26,0.00019178,2]
[338277060,1726479155152,-1570.56,0.00019178,2]
[338277061,1726479155177,-11744.04,0.00019178,2]
[338277062,1726479155200,-11744.04,0.00019178,2]
[338277063,1726479155224,-11744.04,0.00019178,2]
[338277064,1726479155246,-11744.04,0.00019178,2]
[338277065,1726479155268,-911.91,0.00019178,2]
[338277066,1726479155290,-500.0,0.00019178,2]
[338277067,1726479155312,-500.0,0.00019178,2]
[338277068,1726479155333,-1344.58,0.00019178,2]
[338277069,1726479155355,-11744.04,0.00019178,2]
[338277070,1726479155379,-11744.04,0.00019178,2]
[338277071,1726479155401,-11744.04,0.00019178,2]
[338277072,1726479155425,-11744.04,0.00019178,2]
[338277073,1726479155448,-11744.04,0.00019178,2]
[338277074,1726479155470,-1298.27,0.00019178,2]
[338277075,1726479155493,-11744.04,0.00019178,2]
[338277076,1726479155515,-500.0,0.00019178,2]
[338277077,1726479155538,-11744.04,0.00019178,2]
[338277078,1726479155561,-11744.04,0.00019178,2]
[338277079,1726479155583,-11744.04,0.00019178,2]
[338277080,1726479155606,-11744.04,0.00019178,2]
[338277081,1726479155629,-1773.08,0.00019178,2]
[338277082,1726479155651,-11744.04,0.00019178,2]
[338277083,1726479155675,-500.0,0.00019178,2]
[338277084,1726479155698,-11744.04,0.00019178,2]
[338277085,1726479155721,-11744.04,0.00019178,2]
[338277086,1726479155742,-500.0,0.00019178,2]
[338277087,1726479155764,-930.32,0.00019178,2]
[338277088,1726479155786,-500.0,0.00019178,2]
[338277089,1726479155808,-11744.04,0.00019178,2]
[338277090,1726479155830,-500.0,0.00019178,2]
[338277091,1726479155852,-11744.04,0.00019178,2]
[338277092,1726479155875,-11744.04,0.00019178,2]
[338277093,1726479155897,-11744.04,0.00019178,2]
[338277094,1726479155922,-11744.04,0.00019178,2]
[338277095,1726479155946,-857.82,0.00019178,2]
[338277096,1726479155971,-500.0,0.00019178,2]
[338277097,1726479155993,-11744.04,0.00019178,2]
[338277098,1726479156014,-500.0,0.00019178,2]
[338277099,1726479156037,-11744.21867393,0.00019178,2]
[338277100,1726479156063,-216.24676448,0.00019178,2]
[338277101,1726479156085,-151.0,0.00019178,2]
[338277102,1726479156107,-151.0,0.00019178,2]
[338277103,1726479156129,-500.0,0.00019178,2]
[338277104,1726479156153,-792.92,0.00019178,2]
[338277105,1726479156176,-151.0,0.00019178,2]
[338277106,1726479156198,-151.0,0.00019178,2]
[338277107,1726479156220,-500.0,0.00019178,2]
[338277108,1726479156242,-151.0,0.00019178,2]
[338277109,1726479156265,-15180.58,0.00019178,2]
[338277110,1726479156288,-163.029151,0.00019178,2]
[338277111,1726479156311,-979.25,0.00019178,2]
[338277112,1726479156332,-500.0,0.00019178,2]
[338277113,1726479156354,-648.92,0.00019178,2]
[338277114,1726479156376,-500.0,0.00019178,2]
[338277115,1726479156398,-500.0,0.00019178,2]
[338277116,1726479156422,-3524.79,0.00019178,2]
[338277117,1726479156443,-5109.29,0.00019178,2]
[338277118,1726479156649,-500.0,0.00019178,2]
[338277119,1726479156674,-601.54,0.00019178,2]
[338277120,1726479156698,-500.0,0.00019178,2]
[338277121,1726479156721,-1782.07,0.00019178,2]
[338277122,1726479156743,-500.0,0.00019178,2]
[338277123,1726479156766,-500.0,0.00019178,2]
[338277124,1726479156788,-500.0,0.00019178,2]
[338277125,1726479156809,-500.0,0.00019178,2]
[338277126,1726479156831,-500.0,0.00019178,2]
[338277127,1726479156854,-500.0,0.00019178,2]
[338277128,1726479156877,-500.0,0.00019178,2]
[338277129,1726479156901,-9173.21,0.00019178,2]
[338277130,1726479156925,-500.0,0.00019178,2]
[338277131,1726479156949,-500.0,0.00019178,2]
[338277132,1726479156972,-500.92627667,0.00019178,2]
[338277133,1726479156994,-500.0,0.00019178,2]
[338277134,1726479157018,-500.0,0.00019178,2]
[338277135,1726479157045,-564.28,0.00019178,2]
[338277136,1726479157070,-649.13,0.00019178,2]
[338277137,1726479157094,-202.68027301,0.00019178,2]
[338277138,1726479157116,-500.0,0.00019178,2]
[338277139,1726479157140,-500.0,0.00019178,2]
[338277140,1726479157163,-500.0,0.00019178,2]
[338277141,1726479157189,-500.0,0.00019178,2]
[338277142,1726479157212,-500.0,0.00019178,2]
[338277143,1726479157235,-500.0,0.00019178,2]
[338277144,1726479157258,-500.0,0.00019178,2]
[338277145,1726479157281,-500.0,0.00019178,2]
[338277146,1726479157304,-500.0,0.00019178,2]
[338277147,1726479157326,-500.0,0.00019178,2]
[338277148,1726479157350,-500.0,0.00019178,2]
[338277149,1726479157372,-500.0,0.00019178,2]
[338277150,1726479157395,-500.0,0.00019178,2]
[338277151,1726479157418,-500.0,0.00019178,2]
[338277152,1726479157440,-500.0,0.00019178,2]
[338277153,1726479157463,-500.0,0.00019178,2]
[338277154,1726479157486,-500.0,0.00019178,2]
[338277155,1726479157511,-500.0,0.00019178,2]
[338277156,1726479157534,-500.0,0.00019178,2]
[338277157,1726479157557,-500.0,0.00019178,2]
[338277158,1726479157580,-500.0,0.00019178,2]
[338277159,1726479157603,-500.0,0.00019178,2]
[338277160,1726479157625,-610.6,0.00019178,2]
[338277161,1726479157648,-1017.85,0.00019178,2]
[338277162,1726479157673,-623.61,0.00019178,2]
[338277163,1726479157695,-1006.51,0.00019178,2]
[338277164,1726479157718,-500.0,0.00019178,2]
[338277165,1726479157741,-6007.89,0.00019178,2]
[338277166,1726479157763,-500.0,0.00019178,2]
[338277167,1726479157786,-2986.57,0.00019178,2]
[338277168,1726479157808,-500.0,0.00019178,2]
[338277169,1726479157830,-500.0,0.00019178,2]
[338277170,1726479157853,-301.88,0.00019178,2]
[338277171,1726479157878,-500.0,0.00019178,2]
[338277172,1726479157900,-1088.24,0.00019178,2]
[338277173,1726479157923,-500.0,0.00019178,2]
[338277174,1726479157945,-500.0,0.00019178,2]
[338277175,1726479157969,-2956.85,0.00019178,2]
[338277176,1726479157990,-479.43542539,0.00019178,2]
[338277177,1726479158013,-1777.49,0.00019178,2]
[338277178,1726479158039,-515.88606014,0.00019178,2]
[338277179,1726479158067,-500.0,0.00019178,2]
[338277180,1726479158090,-500.0,0.00019178,2]
[338277181,1726479158112,-500.0,0.00019178,2]
[338277182,1726479158136,-112202.03417454,0.00019178,2]
[338277183,1726479208164,-2771.64578404,0.00017918,2]
[338277184,1726479208190,-2771.64578403,0.00018473,2]
[338277185,1726479208218,-2771.64578403,0.00019029,2]
[338277186,1726479218858,-194049.0626479,0.00019168,3]
[338277187,1726479247107,-300.0,0.00019167,2]
[338277188,1726479247133,-300.0,0.00019167,2]
[338277189,1726479247159,-922.62,0.00019168,3]
[338277190,1726479254336,461.31,0.00019168,3]
[338277191,1726479259332,-35334.0612841,0.00019168,3]
[338277192,1726479259360,-10160.8539915,0.00019168,3]
[338277193,1726479265130,230.66,0.00019168,3]
[338277194,1726479275887,691.99,0.00019168,3]
[338277195,1726479285254,-163.59273916,0.00019177,2]
[338277196,1726479285286,-500.0,0.00019177,2]
[338277197,1726479285309,-343.23998255,0.00019177,2]
[338277198,1726479285332,-500.0,0.00019177,2]
[338277199,1726479285357,-418.90868553,0.00019177,2]
[338277200,1726479285380,-500.0,0.00019177,2]
[338277201,1726479285404,-275.73343424,0.00019177,2]
[338277202,1726479285428,-500.0,0.00019177,2]
[338277203,1726479285450,-500.0,0.00019177,2]
[338277204,1726479285473,-500.0,0.00019177,2]
[338277205,1726479285497,-500.0,0.00019177,2]
[338277206,1726479285524,-500.0,0.00019177,2]
[338277207,1726479285547,-512.90397645,0.00019177,2]
[338277208,1726479285570,-500.0,0.00019177,2]
[338277209,1726479285592,-264.16603699,0.00019177,2]
[338277210,1726479285616,-273.82679204,0.00019177,2]
[338277211,1726479285642,-500.0,0.00019177,2]
[338277212,1726479285665,-500.0,0.00019177,2]
[338277213,1726479285688,-173.56100453,0.00019177,2]
[338277214,1726479285712,-500.0,0.00019177,2]
[338277215,1726479285735,-551.4715068,0.00019177,2]
[338277216,1726479285758,-500.0,0.00019177,2]
[338277217,1726479285784,-500.0,0.00019177,2]
[338277218,1726479285809,-500.0,0.00019177,2]
[338277219,1726479285832,-500.0,0.00019177,2]
[338277220,1726479285857,-500.0,0.00019177,2]
[338277221,1726479285882,-275.34272651,0.00019177,2]
[338277222,1726479285905,-500.0,0.00019177,2]
[338277223,1726479285930,-500.0,0.00019177,2]
[338277224,1726479285955,-500.0,0.00019177,2]
[338277225,1726479285980,-500.0,0.00019177,2]
[338277226,1726479286007,-500.0,0.00019177,2]
[338277227,1726479286035,-500.0,0.00019177,2]
[338277228,1726479286060,-500.0,0.00019177,2]
[338277229,1726479286086,-500.0,0.00019177,2]
[338277230,1726479286110,-566.18132476,0.00019177,2]
[338277231,1726479286136,-500.0,0.00019177,2]
[338277232,1726479286161,-500.0,0.00019177,2]
[338277233,1726479286188,-500.0,0.00019177,2]
[338277234,1726479286214,-500.0,0.00019177,2]
[338277235,1726479286240,-450.0,0.00019177,2]
[338277236,1726479286264,-499.99999999,0.00019177,2]
[338277237,1726479286292,-500.0,0.00019177,2]
[338277238,1726479286318,-342.0,0.00019177,2]
[338277239,1726479286342,-500.0,0.00019177,2]
[338277240,1726479286367,-500.0,0.00019177,2]
[338277241,1726479286391,-341.55720321,0.00019177,2]
[338277242,1726479286416,-500.0,0.00019177,2]
[338277243,1726479286440,-500.0,0.00019177,2]
[338277244,1726479286465,-500.0,0.00019177,2]
[338277245,1726479286490,-500.0,0.00019177,2]
[338277246,1726479286515,-500.0,0.00019177,2]
[338277247,1726479286541,-500.0,0.00019177,2]
[338277248,1726479286567,-500.0,0.00019177,2]
[338277249,1726479286591,-500.0,0.00019177,2]
[338277250,1726479286637,-500.0,0.00019177,2]
[338277251,1726479286665,-568.21563316,0.00019177,2]
[338277252,1726479286693,-500.0,0.00019177,2]
[338277253,1726479286719,-500.0,0.00019177,2]
[338277254,1726479286745,-500.0,0.00019177,2]
[338277255,1726479286773,-500.0,0.00019177,2]
[338277256,1726479286800,-22434.63173642,0.00019178,5]
[338277257,1726479286824,-500.0,0.00019178,2]
[338277258,1726479286848,-500.0,0.00019178,2]
[338277259,1726479286872,-500.0,0.00019178,2]
[338277260,1726479286897,-1948.09,0.00019178,2]
[338277261,1726479286921,-637.77663279,0.00019178,2]
[338277262,1726479286945,-629.25,0.00019178,2]
[338277263,1726479286970,-500.0,0.00019178,2]
[338277264,1726479286994,-1134.25,0.00019178,2]
[338277265,1726479287020,-500.0,0.00019178,2]
[338277266,1726479287044,-595.70979987,0.00019178,2]
[338277267,1726479287069,-500.0,0.00019178,2]
[338277268,1726479287093,-500.0,0.00019178,2]
[338277269,1726479287118,-500.0,0.00019178,2]
[338277270,1726479287142,-500.0,0.00019178,2]
[338277271,1726479287434,-500.0,0.00019178,2]
[338277272,1726479287458,-1474.33,0.00019178,2]
[338277273,1726479287481,-509.89267986,0.00019178,2]
[338277274,1726479287505,-831.0694855,0.00019178,2]
[338277275,1726479287528,-500.0,0.00019178,2]
[338277276,1726479287551,-501.94115794,0.00019178,2]
[338277277,1726479287573,-500.0,0.00019178,2]
[338277278,1726479287597,-2723.47,0.00019178,2]
[338277279,1726479287619,-1115.25,0.00019178,2]
[338277280,1726479287642,-6410.14,0.00019178,2]
[338277281,1726479287670,-500.0,0.00019178,2]
[338277282,1726479287694,-1156.45,0.00019178,2]
[338277283,1726479287717,-500.0,0.00019178,2]
[338277284,1726479287741,-500.0,0.00019178,2]
[338277285,1726479287765,-632.78,0.00019178,2]
[338277286,1726479287788,-160.250033,0.00019178,2]
[338277287,1726479287812,-1125.89,0.00019178,2]
[338277288,1726479287836,-317.315573,0.00019178,2]
[338277289,1726479287861,-317.315573,0.00019178,2]
[338277290,1726479287884,-500.0,0.00019178,2]
[338277291,1726479287910,-68823.4962827,0.00019178,2]
[338277292,1726479288175,1598.5047244,0.00019,10]
[338277314,1726479410542,-300.0,0.00018186,2]
[338277315,1726479410566,-300.0,0.00018186,2]
[338277316,1726479410590,-24900.0,0.00018187,2]
[338277317,1726479410621,-146.0,0.00019,10]
[338277398,1726479644817,1317.66,0.00014,2]
[338277424,1726479755041,165.037854,0.00013699,2]
[338277441,1726480058825,-824.0,0.00022,120]
[338277442,1726480058898,-580.0,0.000225,120]
[338277443,1726480058947,-1000.0,0.00023,120]
[338277444,1726480059026,-580.0,0.000236,120]
[338277445,1726480059071,-1133640.0748953,0.00024,60]
[338277446,1726480059144,-3767.0,0.00024658,60]
[338277447,1726480059172,-580.0,0.000247,120]
[338277448,1726480059213,-1000.0,0.00025,120]
[338277449,1726480059267,-580.0,0.000258,120]
[338277451,1726480068875,-580.0,0.000269,120]
[338277452,1726480068901,-1000.0,0.00027,120]
[338277453,1726480068925,-257.0,0.00027,120]
[338277454,1726480068950,-495.9,0.00027397,120]
[338277455,1726480068976,-1192.01,0.00027397,120]
[338277456,1726480069000,-1192.01,0.00027397,120]
[338277457,1726480069024,-1192.01,0.00027397,120]
[338277458,1726480069050,-1192.01,0.00027397,120]
[338277459,1726480069076,-1192.01,0.00027397,120]
[338277460,1726480069100,-1192.01,0.00027397,120]
[338277461,1726480069125,-1192.01,0.00027397,120]
[338277462,1726480069150,-1192.01,0.00027397,120]
[338277463,1726480069175,-1192.01,0.00027397,120]
[338277464,1726480069202,-1192.01,0.00027397,120]
[338277465,1726480069227,-1192.01,0.00027397,120]
[338277466,1726480069253,-1192.01,0.00027397,120]
[338277467,1726480069278,-1192.01,0.00027397,120]
[338277468,1726480069304,-1192.01,0.00027397,120]
[338277469,1726480069330,-1192.01,0.00027397,120]
[338277470,1726480069354,-1192.01,0.00027397,120]
[338277471,1726480069380,-1192.01,0.00027397,120]
[338277472,1726480069404,-1192.01,0.00027397,120]
[338277473,1726480069430,-1192.01,0.00027397,120]
[338277474,1726480069455,-1192.01,0.00027397,120]
[338277475,1726480069481,-1192.01,0.00027397,120]
[338277476,1726480069506,-1192.01,0.00027397,120]
[338277477,1726480069531,-1192.01,0.00027397,120]
[338277478,1726480069558,-1192.22842005,0.00027397,120]
[338277479,1726480069586,-1174.0,0.00027397,120]
[338277480,1726480069614,-1029.52644021,0.000278,120]
[338277481,1726480069640,-1000.0,0.00028,120]
[338277482,1726480069665,-250.0,0.00028,120]
[338277502,1726480226423,500.0,0.00028,120]
[338277503,1726480226700,500.0,0.00028,120]
[338277504,1726480227072,500.0,0.00028,120]
[338277505,1726480227279,500.0,0.00028,120]
[338277506,1726480227311,500.0,0.00028,120]
[338277507,1726480227530,500.0,0.00028,120]
[338277508,1726480227559,534.89895338,0.00028,120]
[338277509,1726480227781,500.0,0.00028,120]
[338277510,1726480228068,500.0,0.00028,120]
[338277511,1726480228635,500.0,0.00028,120]
[338277512,1726480228891,500.0,0.00028,120]
[338277513,1726480229038,500.0,0.00028,120]
[338277514,1726480229180,500.0,0.00028,120]
[338277515,1726480229295,501.53301838,0.00028,120]
[338277516,1726480229423,500.0,0.00028,120]
[338277517,1726480229725,500.0,0.00028,120]
[338277518,1726480229991,500.0,0.00028,120]
[338277519,1726480230248,500.0,0.00028,120]
[338277520,1726480230496,500.0,0.00028,120]
[338277521,1726480230623,500.0,0.00028,120]
[338277522,1726480230776,500.0,0.00028,120]
[338277523,1726480230868,502.8785042,0.00028,120]
[338277524,1726480231033,500.0,0.00028,120]
[338277525,1726480231209,500.0,0.00028,120]
[338277526,1726480231277,500.0,0.00028,120]
[338277527,1726480231308,500.0,0.00028,120]
[338277528,1726480231342,500.0,0.00028,120]
[338277529,1726480231453,500.0,0.00028,120]
[338277530,1726480231530,500.0,0.00028,120]
[338277535,1726480231564,500.0,0.00028,120]
[338277538,1726480231621,503.01677315,0.00028,120]
[338277541,1726480231654,500.0,0.00028,120]
[338277547,1726480231702,500.0,0.00028,120]
[338277549,1726480231797,500.0,0.00028,120]
[338277552,1726480231875,204.78781306,0.00028,120]
[338277557,1726480231988,500.0,0.00028,120]
[338277558,1726480232024,-239.5860429,0.0001635,2]
[338277559,1726480232034,-172.42219216,0.0001684,2]
[338277560,1726480232046,-77.57780784,0.0001684,2]
[338277561,1726480232056,-250.0,0.00016886,2]
[338277562,1726480232065,-250.0,0.00016932,2]
[338277563,1726480232075,-186.6833836,0.00016939,2]
[338277564,1726480232085,-250.0,0.00016978,2]
[338277565,1726480232094,-250.0,0.00017024,2]
[338277566,1726480232104,-250.0,0.0001707,2]
[338277567,1726480232113,-250.0,0.00017117,2]
[338277568,1726480232122,-250.0,0.00017163,2]
[338277569,1726480232132,-250.0,0.00017209,2]
[338277570,1726480232141,-250.0,0.00017255,2]
[338277571,1726480232150,-250.0,0.00017301,2]
[338277572,1726480232159,-250.0,0.00017348,2]
[338277573,1726480232169,-300.0,0.00017375,2]
[338277574,1726480232178,-300.0,0.00017375,2]
[338277575,1726480232188,-6785.53842529,0.00017376,2]
[338277576,1726480232198,-250.0,0.00017394,2]
[338277577,1726480232209,-250.0,0.0001744,2]
[338277578,1726480232220,-250.0,0.00017486,2]
[338277579,1726480232230,-250.0,0.00017532,2]
[338277580,1726480232240,-6785.53842529,0.00017562,2]
[338277581,1726480232250,-250.0,0.00017579,2]
[338277582,1726480232262,-250.0,0.00017625,2]
[338277583,1726480232272,-250.0,0.00017671,2]
[338277584,1726480232281,-4203.7182515,0.00017685,2]
[338277585,1726480232290,-3750.61652669,0.00017717,2]
[338277586,1726480232324,500.0,0.00028,120]
[338277587,1726480232357,500.0,0.00028,120]
[338277588,1726480232447,564.0,0.00028,120]
[338277589,1726480232506,500.0,0.00028,120]
[338277590,1726480232785,500.0,0.00028,120]
[338277591,1726480232829,500.0,0.00028,120]
[338277592,1726480233035,500.0,0.00028,120]
[338277593,1726480233153,500.0,0.00028,120]
[338277594,1726480233304,500.0,0.00028,120]
[338277595,1726480233434,500.0,0.00028,120]
[338277596,1726480233578,500.0,0.00028,120]
[338277597,1726480233687,500.0,0.00028,120]
[338277598,1726480233830,500.0,0.00028,120]
[338277599,1726480233977,500.0,0.00028,120]
[338277600,1726480234014,500.0,0.00028,120]
[338277601,1726480234048,500.0,0.00028,120]
[338277602,1726480234113,500.0,0.00028,120]
[338277603,1726480234260,500.0,0.00028,120]
[338277604,1726480234292,500.0,0.00028,120]
[338277605,1726480234323,500.0,0.00028,120]
[338277606,1726480234387,300.00916655,0.00028,120]
[338277607,1726480234572,500.0,0.00028,120]
[338277608,1726480234603,500.0,0.00028,120]
[338277609,1726480234635,500.0,0.00028,120]
[338277610,1726480234973,500.0,0.00028,120]
[338277611,1726480235339,500.0,0.00028,120]
[338277612,1726480235369,500.0,0.00028,120]
[338277613,1726480235478,2559.04,0.00028,120]
[338277614,1726480235511,505.74023082,0.00028,120]
[338277615,1726480235544,500.0,0.00028,120]
[338277616,1726480235572,500.0,0.00028,120]
[338277617,1726480235630,2559.04,0.00028,120]
[338277618,1726480235665,500.0,0.00028,120]
[338277619,1726480235699,500.0,0.00028,120]
[338277620,1726480235732,2559.04,0.00028,120]
[338277621,1726480235761,500.0,0.00028,120]
[338277622,1726480235790,500.0,0.00028,120]
[338277623,1726480235823,500.0,0.00028,120]
[338277624,1726480235952,2559.04,0.00028,120]
[338277625,1726480235981,500.0,0.00028,120]
[338277626,1726480236011,500.0,0.00028,120]
[338277627,1726480236112,303.31555134,0.00028,120]
[338277628,1726480236142,2559.04,0.00028,120]
[338277629,1726480236171,500.0,0.00028,120]
[338277630,1726480236200,500.0,0.00028,120]
[338277631,1726480236364,2559.04,0.00028,120]
[338277632,1726480236399,500.0,0.00028,120]
[338277633,1726480236429,6007.44,0.00028,120]
[338277634,1726480236462,500.0,0.00028,120]
[338277635,1726480236492,500.0,0.00028,120]
[338277636,1726480236672,502.60239534,0.00028,120]
[338277637,1726480236735,2559.04,0.00028,120]
[338277638,1726480236793,500.0,0.00028,120]
[338277639,1726480236825,6007.44,0.00028,120]
[338277640,1726480236856,362.16621098,0.00028,120]
[338277641,1726480236902,2559.04,0.00028,120]
[338277642,1726480236943,500.0,0.00028,120]
[338277643,1726480236982,6007.44,0.00028,120]
[338277644,1726480237014,500.0,0.00028,120]
[338277645,1726480237156,2559.04,0.00028,120]
[338277646,1726480237187,500.0,0.00028,120]
[338277647,1726480237218,3566.99,0.00028,120]
[338277648,1726480237250,6007.44,0.00028,120]
[338277649,1726480237286,500.0,0.00028,120]
[338277650,1726480237430,2559.04,0.00028,120]
[338277651,1726480237462,500.0,0.00028,120]
[338277652,1726480237493,3566.99,0.00028,120]
[338277653,1726480237525,6007.44,0.00028,120]
[338277654,1726480237567,500.0,0.00028,120]
[338277656,1726480237723,163.23465883,0.00028,120]
[338277657,1726480237757,3566.99,0.00028,120]
[338277658,1726480237790,6007.44,0.00028,120]
[338277660,1726480237823,2559.04,0.00028,120]
[338277661,1726480237856,500.0,0.00028,120]
[338277663,1726480238003,3566.99,0.00028,120]
[338277664,1726480238037,2559.04,0.00028,120]
[338277666,1726480238074,500.0,0.00028,120]
[338277667,1726480238232,-16320.5275,0.00017717,2]
[338277788,1726480244679,-4828.85597331,0.00017717,2]
[338277789,1726480244690,-250.0,0.00017717,2]
[338277790,1726480244700,-1116.4594513,0.00017771,2]
[338277791,1726480244710,-171.4667761,0.0001783,2]
[338277792,1726480244720,-6785.53842529,0.00018,2]
[338277793,1726480244730,-2280.14924459,0.00018182,2]
[338277794,1726480244748,-4505.3891807,0.00018182,2]